bitfinex-derivatives/quotes_SOLF0:USTF0_20260316
["timestamp","ask_amount","ask_price","bid_price","bid_amount"]
[1773632611916,33.74,93.138,93.051,48.69645394]
[1773632612918,32.04,93.137,93.051,48.69645394]
[1773632613823,19.315,93.174,93.051,48.69645394]
[1773632613824,33.76,93.167,93.051,48.69645394]
[1773632614120,7.9058554,93.17,93.071,48.50261947]
[1773632614721,19.309,93.204,93.071,48.50261947]
[1773632614722,7.9058554,93.19,93.071,48.50261947]
[1773632614914,32.04,93.189,93.071,48.50261947]
[1773632616014,32.04,93.187,93.073,48.75231117]
[1773632617115,32.04,93.183,93.073,48.75231117]
[1773632617316,32.04,93.169,93.073,48.75231117]
[1773632618516,33.74,93.168,93.073,48.75231117]
[1773632618722,32.04,93.167,93.073,48.75231117]
[1773632618922,33.74,93.166,93.073,48.75231117]
[1773632619225,32.04,93.165,93.073,48.75231117]
[1773632621121,41.97888146,93.165,93.073,48.75231117]
[1773632621421,32.04,93.163,93.073,48.75231117]
[1773632624429,7.9058554,93.17,93.073,48.75231117]
[1773632624430,33.74,93.162,93.073,48.75231117]
[1773632625027,32.04,93.161,93.073,48.75231117]
[1773632625629,32.04,93.159,93.073,48.75231117]
[1773632625829,33.74,93.16,93.073,48.75231117]
[1773632626231,32.04,93.159,93.073,48.75231117]
[1773632629033,32.04,93.158,93.073,48.75231117]
[1773632629235,65.78,93.157,93.073,48.75231117]
[1773632629431,33.74,93.157,93.073,48.75231117]
[1773632629625,7.9058554,93.17,93.075,48.76026646]
[1773632629626,32.04,93.167,93.075,48.76026646]
[1773632629831,32.04,93.167,93.077,48.76026646]
[1773632630029,33.74,93.17,93.09,7.9058554]
[1773632630331,33.74,93.17,93.091,48.76026646]
[1773632630834,9.93888146,93.191,93.091,48.76026646]
[1773632631030,33.74,93.2,93.091,58.32149971]
[1773632631331,33.74,93.2,93.093,48.76843624]
[1773632631528,33.74,93.2,93.097,48.7771358]
[1773632633136,32.04,93.207,93.097,48.7771358]
[1773632633337,33.74,93.206,93.1,48.72922571]
[1773632633532,33.74,93.206,93.111,48.63987221]
[1773632634836,33.74,93.212,93.113,48.63558483]
[1773632638432,12.80201117,93.242,93.112,33.74]
[1773632638433,32.04,93.229,93.131,48.11421045]
[1773632638733,11.46997061,93.249,93.151,33.59924718]
[1773632638938,11.46997061,93.249,93.152,33.74]
[1773632639237,11.46997061,93.249,93.153,67.33924718]
[1773632639428,11.46997061,93.249,93.154,33.59924718]
[1773632640038,33.74,93.248,93.154,33.59924718]
[1773632640839,10.50397487,93.247,93.154,33.59924718]
[1773632642039,10.70951442,93.246,93.154,33.59924718]
[1773632642834,9.97145315,93.271,93.153,33.74]
[1773632642835,10.74416106,93.266,93.171,33.59924718]
[1773632643440,10.77839153,93.29,93.191,33.59924718]
[1773632643834,10.77839153,93.276,93.191,33.59924718]
[1773632644539,32.04,93.297,93.221,33.59924718]
[1773632644732,10.3241484,93.319,93.221,33.59924718]
[1773632644932,10.3241484,93.309,93.221,33.59924718]
[1773632646532,9.85932182,93.329,93.221,33.59924718]
[1773632646738,9.85932182,93.326,93.221,33.59924718]
[1773632648036,9.93151122,93.309,93.221,33.59924718]
[1773632652640,33.74,93.31,93.221,33.59924718]
[1773632652839,10.23301212,93.349,93.241,33.59924718]
[1773632653543,10.19576429,93.347,93.241,33.59924718]
[1773632653840,10.19576429,93.334,93.241,33.59924718]
[1773632654043,10.19576429,93.332,93.241,33.59924718]
[1773632655642,10.41151086,93.319,93.241,33.59924718]
[1773632656342,10.65658515,93.299,93.222,33.59924718]
[1773632656542,10.65658515,93.297,93.222,33.59924718]
[1773632657836,9.93188867,93.296,93.222,33.59924718]
[1773632659345,10.06409969,93.286,93.203,33.59924718]
[1773632660238,33.74,93.298,93.203,33.59924718]
[1773632660443,33.74,93.298,93.211,33.59924718]
[1773632661240,10.50655212,93.297,93.211,33.59924718]
[1773632662853,33.74,93.304,93.211,33.59924718]
[1773632663754,10.59031507,93.319,93.213,36.15789745]
[1773632665354,10.64997768,93.314,93.213,36.15789745]
[1773632666051,10.64997768,93.312,93.213,36.15789745]
[1773632666258,10.67136788,93.299,93.213,36.15789745]
[1773632669556,10.73817661,93.296,93.213,36.15789745]
[1773632669951,32.04,93.278,93.17,36.15789745]
[1773632670257,10.73817661,93.279,93.171,36.15789745]
[1773632670654,10.75986474,93.342,93.181,36.15789745]
[1773632670854,10.75986474,93.342,93.172,19.316]
[1773632670855,10.75986474,93.319,93.211,36.15789745]
[1773632671152,32.04,93.31,93.211,36.15789745]
[1773632671356,11.31838216,93.306,93.211,36.15789745]
[1773632677351,11.5403098,93.299,93.211,36.15789745]
[1773632679058,7.88509947,93.26,93.192,36.15789745]
[1773632679558,11.56074036,93.279,93.192,36.15789745]
[1773632680862,11.9527003,93.259,93.192,36.15789745]
[1773632681563,7.88509947,93.26,93.192,36.15789745]
[1773632681564,12.02479742,93.257,93.192,36.15789745]
[1773632683561,33.76,93.258,93.192,36.15789745]
[1773632684768,3.31445593,93.24,93.192,36.15789745]
[1773632685261,3.31445593,93.25,93.192,36.15789745]
[1773632685658,3.31445593,93.26,93.211,36.15789745]
[1773632685859,3.31445593,93.25,93.211,36.15789745]
[1773632687479,3.31445593,93.24,93.181,36.15789745]
[1773632689785,11.56118282,93.259,93.191,36.15789745]
[1773632691084,3.31445593,93.25,93.191,36.15789745]
[1773632693780,43.6805907,93.278,93.191,36.15789745]
[1773632693982,43.6805907,93.278,93.201,37.06144037]
[1773632693983,3.31445593,93.27,93.201,37.06144037]
[1773632694182,33.76,93.279,93.175,33.76]
[1773632694183,33.76,93.279,93.221,37.06144037]
[1773632697690,3.31445593,93.29,93.231,36.18243115]
[1773632697892,11.78834817,93.29,93.231,36.18243115]
[1773632698093,15.1028041,93.29,93.231,36.18243115]
[1773632698287,3.31445593,93.29,93.231,36.18243115]
[1773632698792,11.80371246,93.306,93.231,36.18243115]
[1773632699089,11.80371246,93.306,93.241,36.18243115]
[1773632699296,3.31445593,93.3,93.251,36.18243115]
[1773632699788,11.80371246,93.306,93.251,36.18243115]
[1773632699995,3.31445593,93.3,93.251,36.18243115]
[1773632700494,3.31445593,93.33,93.261,36.18243115]
[1773632700694,3.31445593,93.33,93.271,36.18243115]
[1773632700892,3.31445593,93.32,93.271,36.18243115]
[1773632701085,3.31445593,93.33,93.271,36.18243115]
[1773632702493,15.25189996,93.34,93.271,36.18243115]
[1773632702689,3.31445593,93.35,93.281,36.18243115]
[1773632702896,3.31445593,93.35,93.28,3.31445593]
[1773632702897,3.31445593,93.35,93.291,36.18243115]
[1773632703094,11.71228644,93.382,93.291,36.18243115]
[1773632703298,3.31445593,93.35,93.308,36.18243115]
[1773632704093,11.83051984,93.347,93.271,36.18243115]
[1773632704294,3.31445593,93.36,93.3,3.31445593]
[1773632704499,3.31445593,93.36,93.301,36.18243115]
[1773632704698,3.31445593,93.37,93.311,36.18243115]
[1773632704897,11.65157484,93.384,93.311,36.18243115]
[1773632706292,33.74,93.395,93.311,36.18243115]
[1773632706496,33.74,93.395,93.28,7.87045682]
[1773632706497,10.91532752,93.419,93.321,36.18243115]
[1773632707998,10.78429269,93.443,93.341,36.18243115]
[1773632708299,10.78429269,93.443,93.291,9.61469987]
[1773632708300,10.78429269,93.469,93.361,36.18243115]
[1773632708504,10.79874849,93.483,93.361,36.18243115]
[1773632708700,10.79874849,93.483,93.381,36.18243115]
[1773632709796,11.27015217,93.469,93.381,36.18243115]
[1773632711401,7.87045682,93.45,93.381,36.18243115]
[1773632711705,11.32599391,93.449,93.381,36.18243115]
[1773632712793,11.32599391,93.449,93.331,36.18243115]
[1773632713102,11.8720045,93.448,93.331,36.18243115]
[1773632713298,33.74,93.449,93.313,33.74]
[1773632713299,11.87596035,93.478,93.334,36.18243115]
[1773632713497,11.87596035,93.478,93.391,36.18243115]
[1773632715003,11.29478512,93.509,93.391,36.18243115]
[1773632715794,10.08084021,93.489,93.391,36.18243115]
[1773632716805,10.02219311,93.469,93.391,36.18243115]
[1773632717102,19.246,93.509,93.391,36.18243115]
[1773632717103,10.02219311,93.449,93.391,36.18243115]
[1773632719500,7.87045682,93.43,93.341,36.18243115]
[1773632720500,9.97992331,93.467,93.361,36.18243115]
[1773632721008,9.97992331,93.487,93.381,36.18243115]
[1773632722105,32.19,93.499,93.381,36.18243115]
[1773632722297,9.59761927,93.477,93.381,36.18243115]
[1773632722498,9.59761927,93.476,93.381,36.18243115]
[1773632724505,32.19,93.468,93.381,36.18243115]
[1773632724701,43.04321617,93.468,93.381,36.18243115]
[1773632725201,43.04321617,93.468,93.332,19.282]
[1773632725202,10.85661051,93.449,93.359,37.78674536]
[1773632725408,43.12149795,93.437,93.359,37.78674536]
[1773632725702,32.19,93.433,93.359,37.78674536]
[1773632726401,11.50638522,93.454,93.361,37.78674536]
[1773632726602,7.85614836,93.43,93.361,37.78674536]
[1773632726800,11.50638522,93.431,93.361,37.78674536]
[1773632727208,45.22960635,93.466,93.361,37.78674536]
[1773632727503,7.85614836,93.46,93.361,37.78674536]
[1773632727703,32.19,93.458,93.361,37.78674536]
[1773632727908,11.87950161,93.449,93.361,37.78674536]
[1773632728304,11.92050233,93.439,93.361,37.78674536]
[1773632731905,11.8512964,93.419,93.342,37.78674536]
[1773632734811,13.87759072,93.399,93.291,37.78674536]
[1773632735215,13.88037305,93.379,93.291,37.78674536]
[1773632735412,13.88039017,93.378,93.291,37.78674536]
[1773632735616,7.85614836,93.36,93.291,37.78674536]
[1773632736020,13.88039017,93.359,93.291,37.78674536]
[1773632738015,13.88039017,93.359,93.251,37.78674536]
[1773632739017,21.65229052,93.34,93.251,37.78674536]
[1773632739219,13.79943194,93.362,93.251,37.78674536]
[1773632739516,13.72094933,93.378,93.281,37.78674536]
[1773632741418,13.26813312,93.399,93.281,37.78674536]
[1773632741619,13.26813312,93.399,93.301,37.78674536]
[1773632742418,13.27056169,93.416,93.321,37.78674536]
[1773632742623,13.27056169,93.42,93.321,37.78674536]
[1773632743019,13.27056169,93.419,93.321,37.78674536]
[1773632743224,13.27310583,93.409,93.321,37.78674536]
[1773632743418,13.27388296,93.399,93.321,37.78674536]
[1773632743617,32.19,93.427,93.321,37.78674536]
[1773632743829,13.27388296,93.42,93.321,37.78674536]
[1773632744833,7.85614836,93.41,93.321,37.78674536]
[1773632745132,12.4813143,93.409,93.321,37.78674536]
[1773632749043,12.24085937,93.389,93.281,37.78674536]
[1773632749340,12.28106602,93.369,93.281,37.78674536]
[1773632749535,12.28106602,93.413,93.281,37.78674536]
[1773632749730,12.28106602,93.399,93.281,37.78674536]
[1773632751637,12.28106602,93.399,93.301,37.78674536]
[1773632751836,33.74,93.416,93.301,37.78674536]
[1773632752338,11.24759357,93.415,93.301,37.78674536]
[1773632752637,33.74,93.416,93.301,37.78674536]
[1773632752638,11.24759357,93.399,93.301,37.78674536]
[1773632753340,11.24759357,93.399,93.259,36.63719121]
[1773632753539,11.22749452,93.343,93.259,36.63719121]
[1773632753739,11.22749452,93.339,93.259,36.63719121]
[1773632754140,51.27364288,93.33,93.259,36.63719121]
[1773632754336,11.87589069,93.329,93.259,36.63719121]
[1773632754540,11.89664826,93.319,93.259,36.63719121]
[1773632754841,11.89664826,93.319,93.236,34.19584776]
[1773632757743,7.85614836,93.31,93.236,34.19584776]
[1773632758445,21.12726982,93.31,93.236,34.19584776]
[1773632759147,13.27112146,93.309,93.236,34.19584776]
[1773632759646,13.45849271,93.307,93.236,34.19584776]
[1773632761342,13.23103858,93.289,93.181,34.19584776]
[1773632761841,7.85614836,93.27,93.181,34.19584776]
[1773632762242,13.23330117,93.269,93.181,34.19584776]
[1773632762548,13.22731514,93.249,93.181,34.19584776]
[1773632762750,13.22731514,93.249,93.131,34.19584776]
[1773632762950,13.22731514,93.229,93.131,34.19584776]
[1773632763151,13.22731514,93.209,93.131,34.19584776]
[1773632763649,33.76,93.248,93.131,34.19584776]
[1773632763650,21.20228364,93.23,93.131,34.19584776]
[1773632763847,13.34613528,93.229,93.131,34.19584776]
[1773632764750,33.76,93.248,93.141,34.19584776]
[1773632765546,13.23126915,93.247,93.141,34.19584776]
[1773632765744,13.23126915,93.229,93.141,34.19584776]
[1773632766445,13.17519532,93.249,93.141,34.19584776]
[1773632768350,7.85614836,93.24,93.141,34.19584776]
[1773632768546,13.22504074,93.239,93.141,34.19584776]
[1773632770353,13.37713122,93.219,93.141,34.19584776]
[1773632770554,32.19,93.255,93.057,188.6]
[1773632770555,7.85614836,93.17,93.06,34.19584776]
[1773632771658,13.37713122,93.18,93.06,34.19584776]
[1773632771864,21.23327958,93.18,93.071,34.19584776]
[1773632772261,13.37713122,93.18,93.071,34.19584776]
[1773632772467,33.76,93.196,93.071,34.19584776]
[1773632772658,13.18860686,93.195,93.071,34.19584776]
[1773632773258,7.85614836,93.18,93.071,34.19584776]
[1773632774962,7.85614836,93.14,93.071,34.19584776]
[1773632775168,12.94465863,93.139,93.071,34.19584776]
[1773632775764,13.91910202,93.159,93.071,34.19584776]
[1773632776163,13.91910202,93.179,93.071,34.19584776]
[1773632776963,13.91910202,93.179,93.081,34.19584776]
[1773632779170,45.54357281,93.199,93.081,34.19584776]
[1773632779673,13.35357281,93.199,93.101,34.19584776]
[1773632780569,13.26769879,93.216,93.101,34.19584776]
[1773632780873,13.26769879,93.206,93.101,34.19584776]
[1773632781768,13.3097331,93.198,93.101,34.19584776]
[1773632782173,13.33754521,93.232,93.101,34.19584776]
[1773632782376,13.49346881,93.259,93.141,37.43749887]
[1773632782881,13.49346881,93.249,93.141,37.43749887]
[1773632786077,13.04801059,93.272,93.161,37.43749887]
[1773632787067,12.9638779,93.259,93.161,37.43749887]
[1773632787676,14.19093797,93.279,93.171,37.43749887]
[1773632788675,14.19093797,93.279,93.17,7.89382247]
[1773632788676,14.20058534,93.299,93.191,37.43749887]
[1773632794981,32.19,93.317,93.211,37.43749887]
[1773632795984,47.42541639,93.317,93.211,37.43749887]
[1773632796179,15.23541639,93.316,93.211,37.43749887]
[1773632796384,33.76,93.321,93.211,37.43749887]
[1773632796385,15.25315514,93.296,93.211,37.43749887]
[1773632796689,15.25315514,93.302,93.211,37.43749887]
[1773632796882,15.25315514,93.296,93.211,37.43749887]
[1773632797185,32.19,93.297,93.211,37.43749887]
[1773632797186,15.2541983,93.289,93.211,37.43749887]
[1773632801794,14.94224916,93.309,93.211,37.43749887]
[1773632803384,32.19,93.327,93.211,37.43749887]
[1773632803590,14.90840978,93.35,93.206,33.76]
[1773632803591,14.90840978,93.35,93.251,37.43749887]
[1773632803794,14.90840978,93.336,93.251,37.43749887]
[1773632804893,14.94035939,93.335,93.251,37.43749887]
[1773632806393,33.76,93.336,93.251,37.43749887]
[1773632807197,14.14268296,93.355,93.251,37.43749887]
[1773632811898,7.89382247,93.37,93.271,37.43749887]
[1773632811899,14.32570502,93.369,93.271,37.43749887]
[1773632815101,33.74,93.377,93.271,37.43749887]
[1773632815394,14.39139934,93.415,93.311,35.05339839]
[1773632815700,14.39139934,93.415,93.313,35.05339839]
[1773632817595,13.57569025,93.413,93.313,35.05339839]
[1773632818100,13.57569025,93.399,93.313,35.05339839]
[1773632818895,33.74,93.414,93.313,35.05339839]
[1773632819098,33.74,93.414,93.331,35.05339839]
[1773632820391,13.48169447,93.413,93.331,35.05339839]
[1773632820998,33.74,93.459,93.361,35.05339839]
[1773632820999,13.48169447,93.441,93.361,35.05339839]
[1773632822401,33.74,93.459,93.361,35.05339839]
[1773632823002,13.47574084,93.458,93.361,35.05339839]
[1773632823193,13.47643568,93.449,93.361,35.05339839]
[1773632823397,13.27573116,93.447,93.361,35.05339839]
[1773632823598,13.27573116,93.447,93.32,7.89382247]
[1773632823599,13.27573116,93.429,93.339,35.05339839]
[1773632826996,45.95529153,93.427,93.339,35.05339839]
[1773632827195,13.76529153,93.426,93.339,35.05339839]
[1773632830203,14.37334984,93.409,93.339,35.05339839]
[1773632832206,14.37334984,93.409,93.297,35.05339839]
[1773632832411,13.65287474,93.389,93.297,35.05339839]
[1773632833508,13.76394651,93.409,93.297,35.05339839]
[1773632834610,14.07280974,93.389,93.297,35.05339839]
[1773632837116,14.27889375,93.417,93.297,35.05339839]
[1773632838315,14.27889375,93.417,93.298,33.74]
[1773632838510,14.27889375,93.417,93.299,35.05339839]
[1773632838711,13.97953953,93.415,93.301,35.05339839]
[1773632839610,32.19,93.424,93.311,35.05339839]
[1773632839810,13.99753318,93.43,93.313,35.05339839]
[1773632840213,13.99753318,93.43,93.331,35.05339839]
[1773632840413,13.99753318,93.43,93.333,35.05339839]
[1773632840612,47.74189022,93.449,93.351,35.05339839]
[1773632841515,14.00189022,93.449,93.351,35.05339839]
[1773632842119,13.95400024,93.469,93.351,35.05339839]
[1773632842325,13.95400024,93.469,93.371,37.38816789]
[1773632844513,13.55062325,93.489,93.381,37.38816789]
[1773632845218,13.55062325,93.439,93.351,37.38816789]
[1773632845716,33.74,93.453,93.351,37.38816789]
[1773632846116,13.51447321,93.459,93.351,37.38816789]
[1773632846417,13.51447321,93.459,93.371,37.38816789]
[1773632846622,7.85664877,93.5,93.373,37.38816789]
[1773632846916,14.07949894,93.499,93.373,37.38816789]
[1773632847721,14.07949894,93.499,93.391,37.38816789]
[1773632850622,7.85664877,93.51,93.391,37.38816789]
[1773632850930,13.97690039,93.509,93.411,37.38816789]
[1773632852629,2.138,93.503,93.411,37.38816789]
[1773632852930,13.98824423,93.489,93.393,37.38816789]
[1773632853127,2.139,93.458,93.393,37.38816789]
[1773632853320,13.98905994,93.469,93.393,37.38816789]
[1773632853929,13.99683456,93.494,93.393,37.38816789]
[1773632854425,2.139,93.472,93.393,37.38816789]
[1773632855130,2.139,93.458,93.393,37.38816789]
[1773632855732,2.139,93.447,93.393,37.38816789]
[1773632856332,2.14,93.435,93.374,37.38816789]
[1773632856533,14.18836983,93.439,93.374,37.38816789]
[1773632857028,2.14,93.413,93.352,37.38816789]
[1773632857331,13.6879913,93.419,93.352,37.38816789]
[1773632857734,13.6879913,93.419,93.319,37.38816789]
[1773632858231,13.68914105,93.444,93.331,37.38816789]
[1773632858430,13.66782466,93.429,93.331,37.38816789]
[1773632858737,13.66782466,93.409,93.331,37.38816789]
[1773632859229,13.66867147,93.429,93.331,37.38816789]
[1773632859631,13.66867147,93.429,93.332,33.72]
[1773632859934,13.66867147,93.429,93.333,37.38816789]
[1773632860532,2.14,93.409,93.333,37.38816789]
[1773632860932,12.92667431,93.402,93.333,37.38816789]
[1773632861831,2.141,93.399,93.333,37.38816789]
[1773632862040,12.92667431,93.402,93.333,37.38816789]
[1773632862338,12.92667431,93.402,93.266,12.66768629]
[1773632862339,12.9934834,93.389,93.298,37.38816789]
[1773632862634,13.13335921,93.369,93.278,37.38816789]
[1773632862942,13.13335921,93.349,93.278,37.38816789]
[1773632863331,21.49755034,93.33,93.257,33.72]
[1773632863531,13.64090157,93.329,93.257,33.72]
[1773632864631,13.64090157,93.329,93.255,37.38816789]
[1773632864842,7.85664877,93.31,93.255,37.38816789]
[1773632865136,7.85664877,93.31,93.225,37.38816789]
[1773632865736,13.64090157,93.329,93.225,37.38816789]
[1773632865931,13.64090157,93.329,93.231,37.38816789]
[1773632867729,7.85664877,93.34,93.231,37.38816789]
[1773632867938,13.50944706,93.351,93.251,37.38816789]
[1773632870435,7.85664877,93.36,93.224,33.72]
[1773632870436,14.04513771,93.339,93.224,71.10816789]
[1773632870633,14.04513771,93.308,93.225,37.38816789]
[1773632871729,14.04513771,93.308,93.189,17.565]
[1773632872033,14.04513771,93.308,93.173,37.38816789]
[1773632872034,13.504305,93.258,93.173,37.38816789]
[1773632873534,13.504305,93.258,93.068,12.66768629]
[1773632873535,14.71890209,93.239,93.136,36.48179039]
[1773632875437,14.71890209,93.239,93.141,36.84529789]
[1773632876542,11.16224469,93.266,93.161,36.84529789]
[1773632879341,10.8165954,93.259,93.161,36.84529789]
[1773632881042,10.74,93.352,93.161,36.84529789]
[1773632881043,10.82592066,93.239,93.161,36.84529789]
[1773632881645,10.82489342,93.269,93.161,36.84529789]
[1773632883344,10.82489342,93.269,93.163,36.84529789]
[1773632884448,10.82489342,93.269,93.171,36.84529789]
[1773632884843,19.10890399,93.29,93.191,36.84529789]
[1773632885043,11.25225522,93.289,93.191,36.84529789]
[1773632885747,32.19,93.302,93.191,36.84529789]
[1773632885948,32.19,93.302,93.162,33.76]
[1773632885949,11.24796567,93.301,93.211,36.84529789]
[1773632886545,33.76,93.349,93.181,36.84529789]
[1773632886546,11.2654219,93.269,93.181,36.84529789]
[1773632888047,11.2654219,93.269,93.094,19.332]
[1773632888048,11.24353829,93.229,93.133,36.84529789]
[1773632888249,32.19,93.247,93.133,36.84529789]
[1773632888555,11.22673835,93.229,93.133,36.84529789]
[1773632889952,11.22673835,93.229,93.102,33.76]
[1773632889953,11.1645234,93.189,93.111,36.84529789]
[1773632892355,7.85664877,93.2,93.111,36.84529789]
[1773632892552,9.92626969,93.21,93.111,36.84529789]
[1773632892952,9.92626969,93.199,93.111,36.84529789]
[1773632893457,9.9261372,93.169,93.056,36.84529789]
[1773632893755,9.9261372,93.159,93.056,36.84529789]
[1773632894150,9.9261372,93.159,93.025,35.6289832]
[1773632894151,9.92689264,93.192,93.061,36.84529789]
[1773632894355,9.92689264,93.179,93.061,36.84529789]
[1773632895754,9.61613156,93.159,93.061,36.84529789]
[1773632896556,10.03223416,93.139,93.034,36.84529789]
[1773632897760,10.8710515,93.119,93.034,36.84529789]
[1773632897955,7.85664877,93.2,93.013,36.84529789]
[1773632897956,10.8710515,93.099,93.013,36.84529789]
[1773632898565,11.29738149,93.079,92.988,36.84529789]
[1773632898762,11.29738149,93.059,92.988,36.84529789]
[1773632900254,11.36143363,93.039,92.925,36.84529789]
[1773632902067,11.66853332,93.059,92.951,36.24641758]
[1773632903062,10.17277772,93.079,92.971,36.24641758]
[1773632903968,10.17277772,93.079,92.991,36.24641758]
[1773632904761,33.78,93.108,92.991,36.24641758]
[1773632904762,10.19478889,93.107,92.991,36.24641758]
[1773632905568,10.18087979,93.089,92.991,36.24641758]
[1773632906565,33.78,93.108,93.011,36.24641758]
[1773632906767,10.0583125,93.112,93.011,36.24641758]
[1773632908567,9.13382188,93.104,93.011,36.24641758]
[1773632909764,33.78,93.126,92.961,36.24641758]
[1773632909765,9.1464394,93.079,92.961,36.24641758]
[1773632910566,9.22127817,93.059,92.961,36.24641758]
[1773632910771,9.22127817,93.054,92.961,36.24641758]
[1773632911172,7.91944177,93.06,92.961,36.24641758]
[1773632911173,9.22152047,93.079,92.961,36.24641758]
[1773632911874,9.22152047,93.079,92.981,36.24641758]
[1773632912269,33.78,93.102,93.001,36.24641758]
[1773632912270,9.75682623,93.102,93.001,36.24641758]
[1773632913170,9.79321454,93.096,93.001,36.24641758]
[1773632916172,9.7878105,93.086,93.001,36.24641758]
[1773632917574,9.78498389,93.079,93.001,36.24641758]
[1773632917770,9.78498389,93.069,92.961,36.24641758]
[1773632918275,32.19,93.058,92.961,36.24641758]
[1773632918472,9.68741541,93.039,92.961,36.24641758]
[1773632918969,9.68741541,93.037,92.905,36.24641758]
[1773632919267,9.68741541,93.037,92.904,35.65108343]
[1773632919268,17.60723722,93.04,92.931,36.24641758]
[1773632920069,9.65536678,93.039,92.931,36.24641758]
[1773632921073,40.10944177,93.06,92.951,36.24641758]
[1773632921274,9.8262773,93.059,92.951,36.24641758]
[1773632922075,9.5827833,93.056,92.951,36.24641758]
[1773632923171,9.53817705,93.052,92.951,36.24641758]
[1773632923377,9.53817705,93.046,92.951,36.24641758]
[1773632929782,7.91944177,93.06,92.951,36.24641758]
[1773632929977,7.91944177,93.06,92.961,36.24641758]
[1773632930375,9.51188469,93.05,92.961,36.24641758]
[1773632930683,9.51188469,93.048,92.961,36.24641758]
[1773632931583,9.48309094,93.046,92.961,36.24641758]
[1773632931780,9.48309094,93.039,92.961,36.24641758]
[1773632933089,9.460501,93.079,92.961,36.24641758]
[1773632933484,9.460501,93.079,92.962,35.15219817]
[1773632933886,9.46618937,93.059,92.962,35.15219817]
[1773632937783,9.32282438,93.076,92.971,35.41759642]
[1773632938386,33.78,93.089,92.991,35.41759642]
[1773632938588,9.32137277,93.088,92.991,35.41759642]
[1773632939780,32.19,93.109,92.991,35.41759642]
[1773632939781,9.18349436,93.109,92.991,35.41759642]
[1773632940986,9.18349436,93.109,92.983,32.19]
[1773632940987,9.18349436,93.109,93.011,35.41759642]
[1773632941588,7.91944177,93.13,93.013,35.41759642]
[1773632941589,9.33291424,93.129,93.013,35.41759642]
[1773632941891,9.33291424,93.129,93.031,35.41759642]
[1773632942386,9.38110298,93.126,93.031,35.41759642]
[1773632944391,9.47511154,93.118,93.031,35.41759642]
[1773632944582,9.47511154,93.116,93.031,35.41759642]
[1773632947688,9.47511154,93.116,93.01,7.91944177]
[1773632947689,9.83265636,93.089,93.01,35.41759642]
[1773632947996,9.83265636,93.086,93.01,35.41759642]
[1773632949194,9.82997091,93.076,93.01,35.41759642]
[1773632949588,9.752108,93.109,93.01,35.41759642]
[1773632950492,9.752108,93.109,92.917,10.75]
[1773632950493,9.76498285,93.089,92.993,35.41759642]
[1773632950791,9.76498285,93.111,93.021,35.41759642]
[1773632955299,16.02616823,93.086,92.984,35.41759642]
[1773632955897,16.02616823,93.086,92.991,35.41759642]
[1773632956095,7.91944177,93.08,92.991,35.41759642]
[1773632956392,16.02636171,93.079,92.991,35.41759642]
[1773632957899,33.76,93.087,92.991,35.41759642]
[1773632958100,33.76,93.087,93.001,35.41759642]
[1773632959100,16.02260583,93.098,93.003,35.41759642]
[1773632960296,32.19,93.125,93.003,35.41759642]
[1773632960500,15.99984833,93.144,93.041,35.41759642]
[1773632962599,36.77872897,93.14,93.041,35.41759642]
[1773632962805,36.77872897,93.139,93.041,35.41759642]
[1773632965002,19.322,93.14,93.041,35.41759642]
[1773632965003,36.77872897,93.109,93.041,35.41759642]
[1773632965798,36.77872897,93.109,93.001,36.3450202]
[1773632968900,36.77872897,93.109,93.021,36.3450202]
[1773632970402,36.77872897,93.136,93.051,36.3450202]
[1773632974505,36.77872897,93.129,93.051,36.3450202]
[1773632974701,33.78,93.128,93.051,36.3450202]
[1773632975008,36.77872897,93.127,93.051,36.3450202]
[1773632979618,33.78,93.128,93.051,36.3450202]
[1773632980516,36.77872897,93.145,93.051,36.3450202]
[1773632983217,32.19,93.142,93.051,36.3450202]
[1773632983418,32.19,93.14,93.051,36.3450202]
[1773632983612,32.19,93.138,93.051,36.3450202]
[1773632983812,36.77872897,93.136,93.051,36.3450202]
[1773632992026,32.19,93.127,93.051,36.3450202]
[1773632992320,36.12648902,93.125,93.051,36.3450202]
[1773632992525,36.12648902,93.125,93.009,12.48475692]
[1773632992526,36.12648902,93.109,93.034,37.14762739]
[1773632994930,38.2852576,93.125,93.034,37.14762739]
[1773632997722,38.2852576,93.142,93.036,34.79819357]
[1773632997929,38.2852576,93.156,93.053,34.79819357]
[1773632999333,38.2852576,93.156,93.057,34.79819357]
[1773633000329,7.91797849,93.18,93.056,9.50076472]
[1773633000330,38.2852576,93.181,93.091,34.79819357]
[1773633000631,38.2852576,93.181,93.093,34.79819357]
[1773633004536,38.2852576,93.179,93.093,34.79819357]
[1773633004840,38.2852576,93.139,93.066,34.79819357]
[1773633005028,38.2852576,93.137,93.066,34.79819357]
[1773633007735,38.2852576,93.137,93.048,34.79819357]